fUSD/lending_fUSD_20260410
["ID","MTS","AMOUNT","RATE_DAILY","PERIOD"]
[420213368,1775787036182,-151.0,0.00015998,2]
[420213369,1775787036193,-151.0,0.00015998,2]
[420213370,1775787036203,-151.0,0.00015998,2]
[420213371,1775787036230,-151.0,0.00015998,2]
[420213372,1775787036239,-268.450912,0.00015998,2]
[420213373,1775787036249,-151.0,0.00015998,2]
[420213374,1775787036280,-151.0,0.00015998,2]
[420213375,1775787036305,-151.0,0.00015998,2]
[420213376,1775787036317,-151.0,0.00015998,2]
[420213377,1775787036345,-151.0,0.00015998,2]
[420213378,1775787036355,-151.0,0.00015998,2]
[420213379,1775787036366,-151.0,0.00015998,2]
[420213380,1775787036401,-151.0,0.00015998,2]
[420213381,1775787036430,-151.0,0.00015998,2]
[420213382,1775787036473,-300.0,0.00015999,2]
[420213383,1775787036489,-666.0,0.00015999,2]
[420213384,1775787036515,-501.19695544,0.00015999,2]
[420213385,1775787036543,-490.26100055,0.00015999,2]
[420213386,1775787036554,-430.15438231,0.00015999,2]
[420213387,1775787036566,-500.0,0.00015999,2]
[420213388,1775787036577,-554.04606445,0.00015999,2]
[420213389,1775787036587,-156.00154716,0.00015999,2]
[420213390,1775787036596,-182.89385057,0.00015999,2]
[420213391,1775787036606,-150.0,0.00016,5]
[420213392,1775787036618,-156.0,0.00016,5]
[420213393,1775787036627,-872728.39636776,0.00016,2]
[420213394,1775787036636,-586004.14354121,0.00016,2]
[420213395,1775787036690,-250.0,0.00016,2]
[420213396,1775787036701,-827.70380581,0.00016,2]
[420213397,1775787036718,-2000.0,0.00016,2]
[420213398,1775787036740,-2649.0,0.00016,2]
[420213399,1775787036751,-215452.642495,0.00016,2]
[420213400,1775787036768,-53320.10291487,0.00016,2]
[420213403,1775787038119,-150.0,0.00012998,2]
[420213404,1775787038131,-200.93190772,0.00012998,2]
[420213405,1775787038161,-151.0,0.00015998,2]
[420213406,1775787038171,-151.0,0.00015998,2]
[420213407,1775787038181,-123.82578948,0.00016,2]
[420213408,1775787038310,-29002.2682977,0.00016,2]
[420213459,1775787040761,-160.0,0.00015582,2]
[420213460,1775787040771,-444.534663,0.00015582,2]
[420213461,1775787040781,-10861.94300006,0.00016,2]
[420213462,1775787040814,-3198.82868942,0.00016,2]
[420213463,1775787040860,-729.069326,0.00015582,2]
[420213464,1775787040870,-538.20197545,0.00016,2]
[420213465,1775787040891,-3575.413935,0.00016,2]
[420213466,1775787040917,-918.01254397,0.00016,2]
[420213468,1775787043138,-500.0,0.00015599,2]
[420213469,1775787043162,-415.0,0.00015894,2]
[420213470,1775787043194,-151.0,0.00015998,2]
[420213471,1775787043205,-151.0,0.00015998,2]
[420213472,1775787043223,-1615.17034001,0.00016,2]
[420213473,1775787043242,-12522.31350643,0.00016,2]
[420213475,1775787043267,-128702.7794391,0.00016,2]
[420213477,1775787043291,-98391.80357675,0.00016,2]
[420213480,1775787043326,-10353.99975401,0.00016,2]
[420213504,1775787045732,-1000.0,0.000159,2]
[420213569,1775788047231,-500.0,0.00012541,2]
[420213570,1775788047260,-500.0,0.00012641,2]
[420213571,1775788049573,-1000.0,0.00012641,2]
[420213572,1775788050603,-1000.0,0.00012641,2]
[420213573,1775788050920,-12.545,0.00012641,2]
[420213574,1775788050970,-160.565,0.00012641,2]
[420213575,1775788050993,-826.89,0.00012799,2]
[420213576,1775788051431,-1000.0,0.00012799,2]
[420213577,1775788051879,-673.11,0.00012799,2]
[420213578,1775788051916,-326.89,0.00012799,2]
[420213579,1775788052359,-1000.0,0.00012799,2]
[420213580,1775788052688,-1000.0,0.00012799,2]
[420213581,1775788053110,-1000.0,0.00012799,2]
[420213582,1775788054705,-1000.0,0.00012799,2]
[420213583,1775788067422,-1000.0,0.00012799,2]
[420213584,1775788068339,-207.5734,0.00012799,2]
[420213585,1775788068361,-792.4266,0.000128,2]
[420213586,1775788068795,-1000.0,0.000128,2]
[420213587,1775788069251,-1000.0,0.000128,2]
[420213588,1775788069670,-1000.0,0.000128,2]
[420213589,1775788070017,-1000.0,0.000128,2]
[420213590,1775788070395,-1000.0,0.000128,2]
[420213591,1775788070893,-131.73422596,0.000128,2]
[420213592,1775788070927,-767.87439214,0.000128,2]
[420213593,1775788070961,-100.3913819,0.00012891,2]
[420213594,1775788071157,-99.6086181,0.00012891,2]
[420213595,1775788071181,-151.0,0.00012896,2]
[420213596,1775788071212,-151.0,0.00012896,2]
[420213597,1775788071236,-500.0,0.00012898,2]
[420213598,1775788071268,-98.3913819,0.00012898,2]
[420213599,1775788071566,-139.44086322,0.00012898,2]
[420213600,1775788071602,-500.0,0.00012898,2]
[420213601,1775788071645,-305.99971535,0.00012898,2]
[420213602,1775788071680,-54.55942143,0.00012898,2]
[420213603,1775788074201,-445.44057857,0.00012898,2]
[420213604,1775788074234,-380.87688703,0.00012898,2]
[420213605,1775788074266,-173.6825344,0.00012898,2]
[420213606,1775788074367,-126.3174656,0.00012898,2]
[420213607,1775788074399,-500.0,0.00012898,2]
[420213608,1775788074437,-373.6825344,0.00012898,2]
[420213609,1775788074506,-126.3174656,0.00012898,2]
[420213610,1775788074542,-150.0,0.00012898,2]
[420213611,1775788074572,-673.12379699,0.000129,2]
[420213612,1775788074600,-50.55873741,0.000129,2]
[420213613,1775788074657,-151.83759724,0.000129,2]
[420213614,1775788096206,-171.70586816,0.00012873,2]
[420213615,1775788096236,-506.0,0.000131,2]
[420213616,1775788096261,-170.45663184,0.00013144,2]
[420213617,1775788101213,-1000.0,0.00013144,2]
[420213618,1775788102024,-1000.0,0.00013144,2]
[420213619,1775788102728,-1000.0,0.00013144,2]
[420213620,1775788103186,-1000.0,0.00013144,2]
[420213621,1775788103513,-1000.0,0.00013144,2]
[420213622,1775788103814,-753.70419412,0.00013144,2]
[420213623,1775788103842,-246.29580588,0.00013233,2]
[420213624,1775788104266,-426.82799103,0.00013233,2]
[420213625,1775788104297,-573.17200897,0.00013243,2]
[420213626,1775788104741,-194.70238314,0.00013243,2]
[420213627,1775788104780,-202.39633463,0.000134,2]
[420213628,1775788104817,-300.0,0.00013488,2]
[420213629,1775788104852,-302.90128223,0.00013489,2]
[420213630,1775788105125,-1000.0,0.00013489,2]
[420213631,1775788105438,-1000.0,0.00013489,2]
[420213632,1775788105869,-1000.0,0.00013489,2]
[420213633,1775788107446,-1000.0,0.00013489,2]
[420213634,1775788107618,-1000.0,0.00013489,2]
[420213635,1775788107712,-621.25954373,0.00013489,2]
[420213636,1775788107740,-378.74045627,0.00013567,2]
[420213637,1775788107812,-294.38334064,0.00013567,2]
[420213638,1775788107838,-705.61665936,0.00013686,2]
[420213639,1775788110014,-62.25773275,0.00013686,2]
[420213640,1775788110045,-510.06891032,0.00013698,2]
[420213641,1775788110074,-427.67335693,0.00013698,2]
[420213642,1775788231988,-150.0,0.00012798,2]
[420213643,1775788231997,-103.83271447,0.00012799,2]
[420213644,1775788232168,-9949.76773524,0.00012799,2]
[420213651,1775788236077,-1000.0,0.00012799,2]
[420213652,1775788237338,-1000.0,0.00012799,2]
[420213653,1775788238040,-1698.41755489,0.00012799,2]
[420213654,1775788238469,-1000.0,0.00012799,2]
[420213655,1775788238504,-4430.25868745,0.00012799,2]
[420213656,1775788238541,-256.24770806,0.00012799,2]
[420213657,1775788238730,-1450.80311392,0.00012799,2]
[420213661,1775788239330,-1000.0,0.00012799,2]
[420213662,1775788240357,-1000.0,0.00012799,2]
[420213663,1775788240398,-458.87313864,0.00012799,2]
[420213664,1775788240423,-37629.66996589,0.00012799,2]
[420213665,1775788240464,-1146.36127367,0.00012799,2]
[420213666,1775788240496,-272.24010028,0.00012799,2]
[420213669,1775788242449,-1848059.41540749,0.00012799,2]
[420213670,1775788242467,-4146.91257819,0.000129,2]
[420213671,1775788242484,-1000.0,0.00013,2]
[420213672,1775788242501,-72.32664307,0.00013698,2]
[420213673,1775788242514,-500.0,0.00013698,2]
[420213674,1775788242527,-500.0,0.00013698,2]
[420213675,1775788242539,-500.0,0.00013698,2]
[420213676,1775788242554,-500.0,0.00013698,2]
[420213677,1775788242567,-288.91111324,0.00013698,2]
[420213678,1775788242581,-500.0,0.00013698,2]
[420213679,1775788242597,-500.0,0.00013698,2]
[420213680,1775788242609,-500.0,0.00013698,2]
[420213681,1775788242621,-500.0,0.00013698,2]
[420213682,1775788242633,-500.0,0.00013698,2]
[420213683,1775788242646,-500.0,0.00013698,2]
[420213684,1775788242658,-500.0,0.00013698,2]
[420213686,1775788242671,-500.0,0.00013698,2]
[420213688,1775788242683,-500.0,0.00013698,2]
[420213690,1775788242695,-500.0,0.00013698,2]
[420213693,1775788242707,-500.0,0.00013698,2]
[420213694,1775788242720,-585.21335781,0.00013698,2]
[420213695,1775788242732,-500.0,0.00013698,2]
[420213696,1775788242744,-500.0,0.00013698,2]
[420213697,1775788242757,-506.82132737,0.00013698,2]
[420213698,1775788242770,-500.0,0.00013698,2]
[420213699,1775788242781,-500.0,0.00013698,2]
[420213700,1775788242792,-500.0,0.00013698,2]
[420213701,1775788242807,-500.0,0.00013698,2]
[420213702,1775788242822,-500.0,0.00013698,2]
[420213704,1775788242834,-500.0,0.00013698,2]
[420213705,1775788242846,-500.0,0.00013698,2]
[420213706,1775788242865,-255.0,0.00013899,2]
[420213707,1775788242876,-202.39633463,0.000139,2]
[420213708,1775788242891,-197.77,0.00013905,2]
[420213709,1775788242903,-500.58331498,0.00013925,2]
[420213710,1775788242914,-167.84773228,0.00013925,2]
[420213711,1775788242928,-175.4,0.00014,2]
[420213713,1775788242939,-300.0,0.00014078,2]
[420213714,1775788242950,-197.77,0.00014179,2]
[420213715,1775788242961,-150.0,0.00014187,2]
[420213716,1775788242974,-150.0,0.000142,2]
[420213717,1775788242985,-1293.83597529,0.000142,2]
[420213718,1775788242996,-151.0,0.00014265,2]
[420213719,1775788243008,-700.9335269,0.00014267,2]
[420213720,1775788243019,-500.0,0.00014267,2]
[420213721,1775788243031,-500.0,0.00014267,2]
[420213722,1775788243042,-169212.1939,0.00014268,2]
[420213723,1775788243053,-2500.0,0.000143,2]
[420213724,1775788243067,-2500.0,0.000143,2]
[420213725,1775788243078,-2500.0,0.000143,2]
[420213726,1775788243089,-2500.0,0.000143,2]
[420213727,1775788243100,-300.0,0.000143,2]
[420213728,1775788243113,-300.0,0.000143,2]
[420213729,1775788243125,-300.0,0.000143,2]
[420213730,1775788243135,-500.0,0.000143,2]
[420213731,1775788243146,-500.0,0.000143,2]
[420213732,1775788243157,-500.0,0.000143,2]
[420213733,1775788243168,-500.0,0.000143,2]
[420213734,1775788243179,-229.17399333,0.000143,2]
[420213735,1775788243189,-202.39633463,0.000144,2]
[420213736,1775788243200,-197.78280408,0.00014453,2]
[420213737,1775788243211,-2500.0,0.00014459,2]
[420213738,1775788243221,-506.0,0.00014656,3]
[420213739,1775788243232,-568.8,0.0001471,2]
[420213740,1775788243243,-1574.0,0.0001472,2]
[420213741,1775788243254,-200.0,0.0001484,2]
[420213742,1775788243265,-500.0,0.00014866,2]
[420213743,1775788243276,-202.39633463,0.000149,2]
[420213744,1775788243287,-152.9671876,0.000149,2]
[420213745,1775788243297,-152.9671876,0.000149,2]
[420213746,1775788243308,-152.9671876,0.000149,2]
[420213747,1775788243319,-500.0,0.00014999,2]
[420213748,1775788243330,-382.46883151,0.00014999,2]
[420213749,1775788243341,-1280.88388878,0.00014999,2]
[420213750,1775788243351,-187.78006525,0.00014999,2]
[420213751,1775788243363,-151.0,0.00014999,2]
[420213752,1775788243373,-776.42563213,0.00014999,2]
[420213753,1775788243384,-621.78829552,0.00014999,2]
[420213754,1775788243395,-181.08010149,0.00014999,2]
[420213755,1775788243405,-290.26104003,0.00014999,2]
[420213756,1775788243416,-767.87439211,0.00015014,2]
[420213757,1775788243426,-1572.0,0.0001504,2]
[420213758,1775788243439,-500.0,0.00015054,2]
[420213759,1775788243451,-151.0,0.00015054,2]
[420213760,1775788243462,-1072.0,0.00015068,2]
[420213763,1775788243474,-317.0,0.00015089,2]
[420213764,1775788243487,-500.0,0.00015109,2]
[420213765,1775788243498,-1000.32,0.00015163,2]
[420213766,1775788243509,-500.0,0.00015164,2]
[420213767,1775788243523,-279.026,0.00015172,2]
[420213768,1775788243541,-500.0,0.00015219,2]
[420213769,1775788243555,-500.0,0.00015274,2]
[420213770,1775788243570,-289.41107638,0.0001532,2]
[420213771,1775788243583,-500.0,0.00015329,2]
[420213772,1775788243596,-245.50892139,0.00015349,2]
[420213773,1775788243610,-200.0,0.00015355,2]
[420213774,1775788243626,-314.22871022,0.00015356,2]
[420213775,1775788243640,-200.0,0.00015383,2]
[420213777,1775788243662,-500.0,0.00015384,2]
[420213779,1775788243673,-175.1016,0.000154,2]
[420213781,1775788243688,-202.39633463,0.000154,2]
[420213783,1775788243712,-1686.0,0.00015428,2]
[420213784,1775788243723,-767.87439211,0.00015457,2]
[420213785,1775788243740,-1000.0,0.000155,2]
[420213786,1775788243761,-986.22,0.00015519,2]
[420213787,1775788243772,-200.0,0.00015552,2]
[420213788,1775788243785,-209.10562148,0.00015562,2]
[420213789,1775788243807,-500.66723206,0.00015573,2]
[420213790,1775788243819,-500.0,0.00015599,2]
[420213791,1775788243841,-500.0,0.00015599,2]
[420213792,1775788243852,-460.37020058,0.00015599,2]
[420213793,1775788243867,-1790206.37693445,0.000156,2]
[420213794,1775788243960,-299.39833658,0.000156,2]
[420213795,1775788244062,170.6130001,0.00012789,2]
[420213796,1775788245578,-170.6130001,0.0001559,2]
[420213797,1775788245591,-13185.60038592,0.000156,2]
[420213798,1775788245622,-970.0623945,0.000156,2]
[420213799,1775788245739,829.3869999,0.00013189,2]
[420213806,1775788246783,-3317.52557827,0.00013189,2]
[420213808,1775788246793,-270.91712404,0.000156,2]
[420213810,1775788246809,-19593.4876573,0.000156,2]
[420213813,1775788246829,-984.90166488,0.0001399,2]
[420213814,1775788283870,-800.0,0.000111,5]
[420213815,1775788600414,158.0,7.118e-05,2]
[420213816,1775788779140,287.0,8.901e-05,2]
[420213817,1775789086503,-1000.0,0.000105,5]
[420213818,1775789087717,-1000.0,0.000105,5]
[420213819,1775789088089,-1000.0,0.000105,5]
[420213820,1775789089091,-1000.0,0.000105,5]
[420213821,1775789089145,-837.0,0.000105,5]
[420213822,1775789089175,-163.0,0.000111,3]
[420213823,1775789089498,-23.0,0.000111,3]
[420213824,1775789089536,-977.0,0.000111,3]
[420213825,1775789089827,-1000.0,0.000111,3]
[420213826,1775789090174,-698.0,0.000111,3]
[420213827,1775789090201,-158.0,0.000111,3]
[420213828,1775789101462,-1000.0,0.00012965,3]
[420213829,1775789102601,-1000.0,0.00012965,3]
[420213830,1775789102792,-675.0,0.00012965,3]
[420213831,1775789102818,-250.0,0.00013,2]
[420213832,1775789102841,-75.0,0.00013,2]
[420213833,1775789103263,-175.0,0.00013,2]
[420213835,1775789289547,-319.0,0.000111,3]
[420213836,1775789289595,-681.0,0.000111,3]
[420213837,1775789290851,-1000.0,0.000111,3]
[420213838,1775789291884,-727.0,0.000111,3]
[420213839,1775789291908,-273.0,0.00012965,3]
[420213840,1775789295555,-158.0,0.000111,3]
[420213841,1775789295584,-46.0,0.00012965,3]
[420213842,1775789295608,-796.0,0.00012965,3]
[420213843,1775789299304,-1000.0,0.00012965,3]
[420213844,1775789300371,-612.0,0.00012965,3]
[420213845,1775789348578,523.49956921,9e-05,3]
[420213846,1775789354739,-1000.0,0.000111,3]
[420213847,1775789355780,-1000.0,0.000111,3]
[420213848,1775789356698,-167.0,0.000111,3]
[420213849,1775789356747,-158.0,0.000111,3]
[420213850,1775789356798,-675.0,0.00012965,3]
[420213851,1775789357827,-1000.0,0.00012965,3]
[420213852,1775789358937,-492.0,0.00012965,3]
[420213861,1775789432237,-1950.0,0.000111,3]
[420213863,1775789432251,-287.0,0.000111,3]
[420213865,1775789432260,-1950.0,0.00012965,3]
[420213867,1775789432270,-287.0,0.00012965,3]
[420213869,1775789432282,-506.0,0.000131,2]
[420213870,1775789432298,-150.0,0.00013699,2]
[420213872,1775789432308,-166.66,0.00013699,2]
[420213874,1775789432321,-500.0,0.00013722,2]
[420213877,1775789432339,-500.0,0.00013722,2]
[420213878,1775789432349,-500.0,0.00013722,2]
[420213880,1775789432373,-500.0,0.00013722,2]
[420213882,1775789432385,-166.66,0.00013967,2]
[420213884,1775789432394,-150.0,0.00013973,2]
[420213886,1775789432413,-15555.05343619,0.0001399,2]
[420213888,1775789432432,-854.62,0.00014048,2]
[420213890,1775789432448,-1051.85,0.00014113,2]
[420213892,1775789432468,-160.22,0.00014162,2]
[420213895,1775789432483,-3669.6966,0.00014168,2]
[420213896,1775789432517,-2000.0,0.0001417,2]
[420213898,1775789432530,-3240.0,0.0001417,2]
[420213899,1775789432550,-184.38,0.0001421,3]
[420213900,1775789432561,-1600.0,0.00014214,2]
[420213901,1775789432571,-166.66,0.00014235,2]
[420213903,1775789432581,-300.0,0.00014262,2]
[420213905,1775789432612,-300.0,0.00014262,2]
[420213907,1775789432624,-300.0,0.00014262,2]
[420213909,1775789432672,-300.0,0.00014262,2]
[420213912,1775789432683,-300.0,0.00014262,2]
[420213914,1775789432699,-150.04166029,0.00014262,2]
[420213916,1775789432718,-592.06,0.00014284,2]
[420213918,1775789432731,-500.0,0.00014328,45]
[420213920,1775789432740,-500.0,0.00014328,45]
[420213922,1775789432769,-500.0,0.00014328,45]
[420213924,1775789432779,-500.0,0.00014328,45]
[420213925,1775789432791,-500.0,0.00014328,45]
[420213927,1775789432809,-500.0,0.00014328,45]
[420213929,1775789432818,-500.0,0.00014328,45]
[420213932,1775789432835,-500.0,0.00014328,45]
[420213933,1775789432852,-500.0,0.00014328,45]
[420213934,1775789432862,-249.33767773,0.00014328,45]
[420213936,1775789432873,-500.0,0.0001441,2]
[420213938,1775789432893,-2500.0,0.0001441,2]
[420213940,1775789432902,-2500.0,0.0001441,2]
[420213941,1775789432911,-2500.0,0.0001441,2]
[420213942,1775789432929,-2500.0,0.0001441,2]
[420213943,1775789432939,-1731.78378425,0.0001441,2]
[420213944,1775789432951,-768.21621575,0.0001441,2]
[420213945,1775789432969,-166.66,0.00014503,2]
[420213946,1775789432979,-506.0,0.00014732,3]
[420213947,1775789432988,-166.66,0.00014771,2]
[420213948,1775789433004,-5271.8635,0.00014796,2]
[420213949,1775789433014,-150.0,0.000148,2]
[420213950,1775789433027,-1950.0,0.0001483,3]
[420213951,1775789433038,-287.0,0.0001483,3]
[420213952,1775789433048,-3256.0,0.00014896,2]
[420213953,1775789433057,-592.06,0.00014998,2]
[420213954,1775789433069,-300.0,0.00015,2]
[420213955,1775789433079,-166.66,0.00015039,2]
[420213956,1775789433091,-151.0,0.00015072,2]
[420213957,1775789433100,-3256.0,0.00015075,2]
[420213958,1775789433110,-151.0,0.00015127,2]
[420213959,1775789433130,-151.0,0.00015182,2]
[420213960,1775789433139,-168.0,0.00015228,2]
[420213961,1775789433164,-151.0,0.00015237,2]
[420213962,1775789433175,-151.0,0.00015292,2]
[420213963,1775789433185,-1794.0,0.00015299,2]
[420213964,1775789433195,-986.22,0.00015337,2]
[420213965,1775789433222,-151.0,0.00015347,2]
[420213966,1775789433241,-150.0,0.00015371,2]
[420213967,1775789433264,-168.59918619,0.00015371,2]
[420213968,1775789433274,-5078.7321,0.000154,2]
[420213969,1775789433305,-30250.7516,0.000154,2]
[420213970,1775789433316,-3505.0,0.00015463,7]
[420213971,1775789433328,-1956.41878855,0.00015467,2]
[420213972,1775789433349,-1185.38,0.00015471,2]
[420213973,1775789433358,-4555.38,0.00015471,2]
[420213974,1775789433377,-4942.0,0.00015488,2]
[420213975,1775789433391,-168.0,0.00015493,2]
[420213976,1775789433401,-160.0,0.00015495,2]
[420213977,1775789433422,-267.070109,0.00015495,2]
[420213978,1775789433436,-374.140219,0.00015495,2]
[420213979,1775789433445,-800.0,0.000155,7]
[420213980,1775789433457,-1305.01894637,0.000155,2]
[420213981,1775789433468,-400.0,0.000155,7]
[420213982,1775789433485,-1088.59228767,0.000155,2]
[420213983,1775789433494,-231.31009674,0.000155,2]
[420213984,1775789433505,-5000.0,0.000155,2]
[420213985,1775789433515,-400.0,0.000155,7]
[420213986,1775789433527,-2500.0,0.000155,2]
[420213987,1775789433536,-3462.65936024,0.000155,2]
[420213988,1775789433546,-800.0,0.00015505,7]
[420213989,1775789433555,-800.0,0.00015505,7]
[420213990,1775789433566,-400.0,0.00015505,7]
[420213991,1775789433575,-400.0,0.00015505,7]
[420213992,1775789433586,-400.0,0.00015505,7]
[420213993,1775789433598,-400.0,0.00015505,7]
[420213994,1775789433610,-349.59,0.00015505,7]
[420213995,1775789433620,-4000.0,0.00015507,2]
[420213996,1775789433630,-800.0,0.0001551,7]
[420213997,1775789433645,-400.0,0.0001551,7]
[420213998,1775789433659,-400.0,0.0001551,7]
[420213999,1775789433672,-265.03,0.0001551,7]
[420214000,1775789433682,-321.58,0.0001551,7]
[420214001,1775789433691,-400.0,0.0001551,7]
[420214002,1775789433705,-400.0,0.0001551,7]
[420214003,1775789433717,-400.0,0.0001551,7]
[420214004,1775789433730,-400.0,0.0001551,7]
[420214005,1775789433739,-392.33,0.0001551,7]
[420214006,1775789433751,-260.8155,0.00015512,7]
[420214007,1775789433768,-181.878574,0.00015512,7]
[420214008,1775789433792,-1956.41878849,0.00015515,2]
[420214009,1775789433801,-160.0,0.00015523,2]
[420214010,1775789433816,-330.975571,0.00015523,2]
[420214011,1775789433831,-501.951143,0.00015523,2]
[420214012,1775789433840,-350.0,0.00015529,2]
[420214013,1775789433850,-3462.65936023,0.00015544,2]
[420214014,1775789433872,-2187.92130329,0.00015559,2]
[420214015,1775789433884,-1254.41808677,0.00015559,2]
[420214020,1775789438347,-1500.38426955,0.00015559,2]
[420214021,1775789438365,-1841.24278259,0.00015559,2]
[420214022,1775789438384,-403.45460063,0.00015559,2]
[420214038,1775789440658,-1271.86348119,0.00015559,2]
[420214069,1775789441940,-48088.80700601,0.00015559,2]
[420214078,1775789446394,-3173.84431507,0.00015559,2]
[420214079,1775789446423,-1956.41878849,0.00015563,2]
[420214080,1775789446455,-231.31009672,0.00015567,2]
[420214081,1775789446487,-163.83314223,0.00015573,2]
[420214083,1775789446497,-1018.54557948,0.00015589,2]
[420214085,1775789446549,-2444.11378075,0.00015589,2]
[420214087,1775789446563,-8664.4274701,0.00015589,2]
[420214089,1775789446584,-151.0,0.00015589,2]
[420214091,1775789446595,-151.0,0.00015589,2]
[420214092,1775789446610,-153.41859739,0.00015589,2]
[420214095,1775789446630,-170.6130001,0.0001559,2]
[420214097,1775789446641,-151.0,0.00015597,2]
[420214098,1775789446663,-151.0,0.00015597,2]
[420214100,1775789446673,-518.62486949,0.00015599,2]
[420214103,1775789446692,-449.47042546,0.00015599,2]
[420214150,1775789448892,-50.52957454,0.00015599,2]
[420214151,1775789448902,-500.0,0.00015599,2]
[420214152,1775789448911,-500.0,0.00015599,2]
[420214153,1775789448920,-500.0,0.00015599,2]
[420214154,1775789448937,-500.0,0.00015599,2]
[420214155,1775789448947,-500.0,0.00015599,2]
[420214156,1775789448956,-500.0,0.00015599,2]
[420214157,1775789448966,-462.85761102,0.00015599,2]
[420214158,1775789448980,-37.14238898,0.00015599,2]
[420214159,1775789448992,-500.0,0.00015599,2]
[420214160,1775789449001,-500.0,0.00015599,2]
[420214161,1775789449011,-500.0,0.00015599,2]
[420214162,1775789449020,-500.0,0.00015599,2]
[420214163,1775789449036,-500.0,0.00015599,2]
[420214164,1775789449045,-500.0,0.00015599,2]
[420214165,1775789449060,-500.0,0.00015599,2]
[420214166,1775789449071,-450.0,0.00015599,2]
[420214167,1775789449081,-500.0,0.00015599,2]
[420214168,1775789449091,-207.78828329,0.00015599,2]
[420214169,1775789449111,-292.21171671,0.00015599,2]
[420214170,1775789449122,-500.0,0.00015599,2]
[420214171,1775789449131,-94.78930964,0.00015599,2]
[420214172,1775789449163,-273.21713835,0.00015599,2]
[420214173,1775789449176,-248.60737293,0.00015599,2]
[420214174,1775789449194,-514.24972482,0.00015599,2]
[420214175,1775789449205,-500.0,0.00015599,2]
[420214176,1775789449214,-189.91,0.00015599,2]
[420214177,1775789449224,-516.48257158,0.00015599,2]
[420214178,1775789449242,-500.0,0.00015599,2]
[420214179,1775789449261,-500.0,0.00015599,2]
[420214180,1775789449274,-500.0,0.00015599,2]
[420214181,1775789449283,-500.0,0.00015599,2]
[420214182,1775789449298,-640.0709901,0.00015599,2]
[420214183,1775789449312,-500.0,0.00015599,2]
[420214184,1775789449321,-500.0,0.00015599,2]
[420214185,1775789449332,-500.0,0.00015599,2]
[420214186,1775789449344,-290.29128889,0.00015599,2]
[420214187,1775789449356,-500.0,0.00015599,2]
[420214188,1775789449374,-500.0,0.00015599,2]
[420214189,1775789449383,-500.0,0.00015599,2]
[420214190,1775789449393,-500.0,0.00015599,2]
[420214191,1775789449403,-500.0,0.00015599,2]
[420214192,1775789449419,-500.0,0.00015599,2]
[420214193,1775789449429,-19648.22645863,0.000156,2]
[420214194,1775789449447,-70479.4446329,0.000156,2]
[420214195,1775789449462,-989.29856,0.000156,2]
[420214196,1775789449483,-12568.4129806,0.000156,2]
[420214197,1775789770447,-300.0,9.988e-05,2]
[420214198,1775789770481,-256.0,9.989e-05,2]
[420214199,1775789770512,-256.0,9.989e-05,2]
[420214200,1775789770544,-188.0,9.989e-05,2]
[420214201,1775789771558,-68.0,9.989e-05,2]
[420214202,1775789771589,-256.0,9.989e-05,2]
[420214203,1775789771622,-256.0,9.989e-05,2]
[420214204,1775789771661,-256.0,9.989e-05,2]
[420214205,1775789771696,-164.0,9.989e-05,2]